Cogmind - Beta 15 *** ADVENTURER MODE // 2025.08.01 @ 09:05:30 Player: LegoMDS Result: Destroyed by 7T-M4M(R) with Subdweller Machine Gun Performance ------------- Evolutions (0) 0 Regions Visited (3) 600 Robots Destroyed (29) 145 Value Destroyed (770) 770 Prototype IDs (4) 80 Alien Tech Used (0) 0 Bonus (230) 230 TOTAL SCORE: 1825 Bonus ------- Follower Combat Kills 230 Cogmind --------- Core Integrity 0/250 Matter 295/300 Energy 27/100 System Corruption 1% Temperature Cool (0) Movement Rolling (120) Ox1 Location -10/Subcaves Parts ------- > --- POWER (1) -------- (None) > --- PROPULSION (2) --- Subdweller Monowheel > --- UTILITY (2) ------ Large Storage Unit Subdweller Optics > --- WEAPON (2) ------- (None) > --- INVENTORY (15) --- Subdweller Power Source Subdweller Power Source Light Nuclear Core Light Nuclear Core Improved Heat Sink Subdweller Optics Subdweller Optics Targeting Computer Subdweller Machine Gun Datajack Peak State ------------ > --- POWER ------------ Light Nuclear Core > --- PROPULSION ------- Light Treads Light Treads > --- UTILITY ---------- Large Storage Unit Subdweller Optics > --- WEAPON ----------- Particle Gun Battle Rifle > --- INVENTORY -------- Ion Engine Subdweller Power Source Subdweller Power Source Light Nuclear Core Light Treads Subdweller Monowheel Improved Heat Sink Subdweller Optics Subdweller Optics Targeting Computer Subdweller Machine Gun Datajack Flamer [Rating: 14] Favorites ----------- Power Light Nuclear Core Engine Ion Engine Power Core Light Nuclear Core Propulsion Light Treads Treads Light Treads Wheel Subdweller Monowheel Utility Large Storage Unit Device Subdweller Optics Storage Large Storage Unit Protection Propulsion Shielding Weapon Medium Laser Energy Gun Medium Laser Ballistic Gun Light Assault Rifle Special Weapon Flamer Build | -11 -10 -10 -10 ------- Run | Yrd Mat Min Sub Slots Evolved . | . . . . Power . | . . . . Propulsion . | . . . . Utility . | . . . . Weapon . | . . . . Parts Attached 24 | 6 3 1 14 Power 4 | 1 . 1 2 Engine 1 | 1 . . . Core 3 | . . 1 2 Reactor . | . . . . Propulsion 5 | 2 . . 3 Treads 3 | 2 . . 1 Leg . | . . . . Wheel 2 | . . . 2 Hover . | . . . . Flight . | . . . . Utility 7 | 1 2 . 4 Device 4 | . . . 4 Storage 2 | 1 1 . . Processor . | . . . . Hackware . | . . . . Protection 1 | . 1 . . Artifact . | . . . . Weapon 8 | 2 1 . 5 Energy Gun 3 | 1 . . 2 Energy Cannon . | . . . . Ballistic Gun 4 | 1 1 . 2 Ballistic Cannon . | . . . . Launcher . | . . . . Special Weapon 1 | . . . 1 Impact Weapon . | . . . . Slashing Weapon . | . . . . Piercing Weapon . | . . . . Special Melee Weapon . | . . . . Unidentified Prototypes . | . . . . Parts Lost 14 | . 1 . 13 Power 2 | . . . 2 Propulsion 4 | . . . 4 Utility 2 | . . . 2 Weapon 6 | . 1 . 5 Highest Loss Streak 5 | . 1 . 5 To Critical Strikes 1 | . . . 1 Average Backups 7 | 2 5 6 9 Power 2 | . 1 2 2 Propulsion . | . . 1 1 Utility 1 | . . 1 3 Weapon 1 | 1 1 1 1 Tool/Special . | . . . . Unused Backups 7 | . . . 7 Power 4 | . . . 4 Propulsion . | . . . . Utility 2 | . . . 2 Weapon . | . . . . Tool/Special 1 | . . . 1 Average Slot Usage (%) 95 | . 91 100 95 Engine 5 | . 14 6 . Core 7 | . . 7 13 Treads 26 | . 28 28 25 Device 4 | . . . 8 Storage 14 | . 14 14 14 Protection 7 | . 6 14 4 Energy Gun 13 | . 14 14 12 Ballistic Gun 14 | . 13 14 14 Peak Build Rating 14 | 6 8 10 14 Average Rating 9 | 4 6 8 11 On Entrance 5 | . 6 7 10 Naked Turns . | . . . . Heaviest Build 33 | 14 30 29 33 Greatest Support 40 | 40 40 40 40 Greatest Overweight (x) 1 | . . . 1 Average Overweight (x) . | . . . . Largest Inventory Capacity 15 | 8 15 15 15 Average Capacity 13 | 7 11 15 15 Most Carried 14 | 5 8 7 14 Average Carried 7 | 2 5 6 9 Final Capacity 15 | 8 15 15 15 Final Carried 10 | 2 6 7 10 Class Distribution -------------------- 88% | Mutant 11% | Scavenger-Mutant Dominant Class ---------------- Mutant | -10/Materials Mutant | -10/Mines Mutant | -10/Subcaves Resources | -11 -10 -10 -10 ----------- Run | Yrd Mat Min Sub Matter Collected 745 | 211 212 28 294 Remotely . | . . . . Salvage Created 898 | . 549 103 246 Parts 67 | . 38 5 24 Haulers Intercepted 1 | . 1 . . Recyclers Shooed . | . . . . Parts Field Recycled . | . . . . Retrieved Matter . | . . . . Parts Self-Destructed 9 | . . . 9 Prevented . | . . . . Kills | -11 -10 -10 -10 ------- Run | Yrd Mat Min Sub Combat Hostiles Destroyed 26 | . 15 2 9 Guns 26 | . 15 2 9 Classes Destroyed 5 | . 4 . 1 Hauler 1 | . 1 . . Watcher 2 | . 2 . . Swarmer 10 | . 6 . 4 Grunt 11 | . 9 2 . Subdweller 5 | . . . 5 Best Kill Streak 4 | . 3 1 4 Combat Bots Only 4 | . 3 1 4 Max Kills in Single Turn 1 | . 1 1 1 Gunslinging . | . . . . Exploded . | . . . . Melee . | . . . . Uniques/NPCs Destroyed . | . . . . Combat | -11 -10 -10 -10 -------- Run | Yrd Mat Min Sub Hostile Shots Fired 174 | . 61 19 94 Missed 51 | . 24 3 24 Hits 123 | . 37 16 70 Projectile 123 | . 37 16 70 Critical Strikes 2 | . . . 2 Damage Taken 1509 | . 331 175 1003 Core 260 | . 41 . 219 Absorbed by Shields . | . . . . Redirected to Shielding 52 | . 15 28 9 Ignored by Resistances 441 | . 104 51 286 Core Remaining (%) 100 | 100 . . . Volleys Fired 123 | . 45 7 71 Largest 2 | . 2 2 2 Hottest 165 | . 70 70 165 Shots Fired 208 | . 89 14 105 Gun 206 | . 89 14 103 Cannon . | . . . . Launcher . | . . . . Special 2 | . . . 2 Kinetic 112 | . 44 7 61 Thermal 96 | . 45 7 44 Explosive . | . . . . Electromagnetic . | . . . . Robot Hit Streak 27 | . 17 21 27 Robot Miss Streak 2 | . 1 1 2 Penetration Max . | . . . . Secondary Targets 4 | . 4 . . Max Gunslinging Chain 1 | . 1 . . Shots Hit Robots 160 | . 76 13 71 Core Hits 58 | . 32 6 20 Critical Kills . | . . . . Critical Parts Destroyed . | . . . . Critical Strikes 4 | . 3 . 1 Burn 4 | . 3 . 1 Melee Attacks . | . . . . Impact . | . . . . Slashing . | . . . . Piercing . | . . . . Sneak Attacks . | . . . . Combat Hostiles . | . . . . Follow-up Attacks . | . . . . Damage Inflicted 1979 | . 915 135 929 Guns 1956 | . 915 135 906 Cannons . | . . . . Explosions . | . . . . Melee . | . . . . Ramming . | . . . . Kinetic 868 | . 414 49 405 Thermal 1111 | . 501 86 524 Explosive . | . . . . Electromagnetic . | . . . . Impact . | . . . . Slashing . | . . . . Piercing . | . . . . Highest Corruption 1 | . 1 1 1 Average Corruption 1 | . 1 1 1 Corruption Purged . | . . . . Corruption Blocked . | . . . . Effects 23 | . 2 6 15 Message Errors 8 | . . 3 5 Matter Fused 6 | . . 2 4 Heat Flow Errors 5 | . 1 1 3 Data Loss (minor) 1 | . . . 1 Data Loss (major) 1 | . 1 . . Alerts 1 | . . . 1 Weapon Failures 1 | . . . 1 Overload Shots . | . . . . Overflow Damage . | . . . . Projectiles . | . . . . Explosions . | . . . . Melee . | . . . . Knockbacks . | . . . . Impact . | . . . . Kinetic . | . . . . Secondary . | . . . . Self-Inflicted Damage . | . . . . Shots . | . . . . Rammed . | . . . . Targets Rammed . | . . . . Kicked . | . . . . Crushed . | . . . . Highest Temperature 253 | . 159 240 253 Average Temperature 49 | . 45 92 34 Received Heat Transfer 582 | . 177 135 270 Siege Activations . | . . . . Martial Activations . | . . . . Shielding Activations . | . . . . Robots Disrupted . | . . . . Combat Hostiles . | . . . . Robots Corrupted . | . . . . Combat Hostiles . | . . . . Parts Fried . | . . . . Impact Corruptions . | . . . . Robots Melted . | . . . . Combat Hostiles . | . . . . Parts Melted 8 | . 4 2 2 Heat Transferred 3453 | . 1702 259 1492 Parts Sabotaged . | . . . . Parts Stolen . | . . . . Parts Stripped . | . . . . Power Chain Reactions . | . . . . Alert | -11 -10 -10 -10 ------- Run | Yrd Mat Min Sub Maximum Alert Level . | . . . . Low Security (%) 100 | 100 100 100 . Level 1 . | . . . . Level 2 . | . . . . Level 3 . | . . . . Level 4 . | . . . . Level 5 . | . . . . High Security . | . . . . Max Security . | . . . . Peak Influence 196 | . 196 53 . Initial . | . . . . Average 28 | . 44 6 . Influence Increases 642 | . 426 106 110 Destroy 0b10 Robot/C 460 | . 300 80 80 Destroy 0b10 Robot/NC 15 | . 15 . . Destroy Leader 86 | . 66 20 . Allied During Kill 6 | . . 6 . Successful Hack 20 | . 20 . . Disable Machine 9 | . 9 . . Destroy Structure 1 | . 1 . . Lose Combat Pursuer 45 | . 15 . 30 Influence Decreases 642 | . 426 106 110 Time Decay 601 | . 425 106 70 Lost Part 41 | . 1 . 40 Squads Dispatched 3 | . 3 . . Investigation 3 | . 3 . . Extermination . | . . . . Reinforcement . | . . . . Assault . | . . . . Garrison . | . . . . Intercept . | . . . . Searches Triggered . | . . . . Construction Impeded . | . . . . Haulers Reinforced . | . . . . Active Scanning Responses . | . . . . Cargo Convoy Interrupts . | . . . . Stealth | -11 -10 -10 -10 --------- Run | Yrd Mat Min Sub Distress Signals . | . . . . Communications Jammed . | . . . . Distress Signals . | . . . . Times Spotted 43 | . 20 4 19 Peak Tracking Total 6 | . 3 2 6 Tactical Retreats 2 | . 1 . 1 Traps | -11 -10 -10 -10 ------- Run | Yrd Mat Min Sub Traps Triggered 3 | . 3 . . Indirectly . | . . . . Trap Hack Attempts . | . . . . Triggered . | . . . . Disarmed . | . . . . Reprogrammed . | . . . . Reused . | . . . . Traps Extracted . | . . . . Installed . | . . . . Triggered . | . . . . Machines | -11 -10 -10 -10 ---------- Run | Yrd Mat Min Sub Machines Disabled 1 | . 1 . . Max in Single Turn 1 | . 1 . . Machines Repaired . | . . . . Machines Dismantled . | . . . . Machines Sabotaged . | . . . . Overloaded Fab Kills . | . . . . Hacking | -11 -10 -10 -10 --------- Run | Yrd Mat Min Sub Machines Accessed 7 | . 7 . . Terminals 7 | . 7 . . Fabricators . | . . . . Repair Stations . | . . . . Recycling Units . | . . . . Scanalyzers . | . . . . Garrison Access . | . . . . Total Hacks 22 | . 22 . . Successful 7 | . 7 . . Failed 15 | . 15 . . Catastrophic 4 | . 4 . . Database Lockouts . | . . . . Manual . | . . . . Terminals 22 | . 22 . . Fabricators . | . . . . Repair Stations . | . . . . Recycling Units . | . . . . Scanalyzers . | . . . . Garrison Access . | . . . . Terminal Hacks 7 | . 7 . . Record 1 | . 1 . . Prototype ID Bank 2 | . 2 . . Hauler Manifests 1 | . 1 . . Zone Layout 3 | . 3 . . Fabricator Hacks . | . . . . Repair Station Hacks . | . . . . Recycling Unit Hacks . | . . . . Scanalyzer . | . . . . Garrison Access Hacks . | . . . . Unauthorized Hacks . | . . . . Terminals . | . . . . Fabricators . | . . . . Repair Stations . | . . . . Recycling Units . | . . . . Scanalyzers . | . . . . Garrison Access . | . . . . Data Cores Recovered . | . . . . Used . | . . . . Hacking Detections 5 | . 5 . . Full Trace Events 5 | . 5 . . Feedback Events 1 | . 1 . . Corruption 1 | . 1 . . Feedback Blocked . | . . . . Robot Schematics Acquired . | . . . . Robots Built . | . . . . Authchips . | . . . . Time . | . . . . Total Robot Build Rating . | . . . . Part Schematics Acquired . | . . . . Parts Built . | . . . . Authchips . | . . . . Time . | . . . . Total Part Build Rating . | . . . . Parts Repaired . | . . . . Time . | . . . . Parts Recycled . | . . . . Recycled Matter . | . . . . Retrieved Matter . | . . . . Retrieved Components . | . . . . Parts Scanalyzed . | . . . . Part Schematics Acquired . | . . . . Parts Damaged . | . . . . Bothacking | -11 -10 -10 -10 ------------ Run | Yrd Mat Min Sub Used RIF Installer . | . . . . Robots Hacked . | . . . . Non-combat . | . . . . Combat . | . . . . Robot Hacks Applied . | . . . . Relay Couplers Released . | . . . . Fabnet Peak Effective % . | . . . . Robots Rewired . | . . . . Allies Hacked . | . . . . Hacks Repelled . | . . . . Allies | -11 -10 -10 -10 -------- Run | Yrd Mat Min Sub Total Allies 3 | . . 3 . Largest Group 3 | . . 3 3 Highest-Rated Group 40 | . . 40 40 Highest-Rated Ally 16 | . . 16 16 Total Orders . | . . . . Ally Attacks 67 | . . 11 56 Total Damage 743 | . . 135 608 Kills 8 | . . 2 6 Allies Corrupted . | . . . . Allies Melted . | . . . . Intel | -11 -10 -10 -10 ------- Run | Yrd Mat Min Sub Active Infowar (turns) 1218 | . . . 1218 Optics 1218 | . . . 1218 Robot Analysis Total . | . . . . Derelict Logs Recovered 3 | . . 1 2 Drone Launches . | . . . . Drone Recoveries . | . . . . Exploration | -11 -10 -10 -10 ------------- Run | Yrd Mat Min Sub Turns Passed 4201 | 60 1338 852 1951 Spaces Moved 2261 | 36 690 507 1028 Core 9 | 9 . . . Treads 2247 | 27 690 507 1023 Legs . | . . . . Wheels 5 | . . . 5 Hover . | . . . . Flight . | . . . . Fastest Speed 50 | 50 160 160 110 Average Speed 163 | 132 160 160 169 Slowest Speed 240 | 160 160 160 240 Overloaded Moves . | . . . . Propulsion Burnouts . | . . . . Robots Hopped . | . . . . Potential Cave-ins 2 | . . . 2 Cave-ins Triggered . | . . . . Exploration Rate (%) 65 | 4 98 99 61 Regions Visited 3 Branch Regions 2 Pre-discovered Areas 2 | . . 2 . Known Exits Taken . | . . . . Unknown Exits Taken 3 | 1 1 1 . Scrap Searched 2 | . . 1 1 Spaces Dug 3 | . . . 3 Terrain Destroyed 3 | . . . 3 Melee . | . . . . Projectile 3 | . . . 3 AOE . | . . . . Terrain Rammed . | . . . . Walls Destroyed . | . . . . Machines Disabled . | . . . . Actions | -11 -10 -10 -10 --------- Run | Yrd Mat Min Sub Total 2551 | 47 836 536 1132 Wait 107 | . 88 19 . Move 2258 | 35 689 506 1028 Hop . | . . . . Pick Up 30 | 6 8 2 14 Fast Attach 2 | 2 . . . Attach 17 | 4 3 1 9 Detach . | . . . . Swap 10 | . 2 . 8 Drop 4 | . 1 1 2 Fire 123 | . 45 7 71 Melee . | . . . . Ram . | . . . . Kick . | . . . . Crush . | . . . . Escape Stasis . | . . . . Rewire . | . . . . Trap . | . . . . Miscellaneous . | . . . . Route ------- -11/Scrapyard -10/Materials (discovered 4 exits: [*Mat x3] / [*Min]) -10/Mines (discovered 3 exits: [*Mat x2] / [*Sub]) -10/Subcaves (discovered 1 exit: [*Mat]) History --------- Turn | Location | Event 9 | -11/Scrapyard | Discovered new exit (range 15) 61 | -11/Scrapyard | Entered Materials 309 | -10/Materials | Build established: Mutant 353 | -10/Materials | Discovered new exit (range 6) 638 | -10/Materials | Discovered new exit (range 12) 846 | -10/Materials | Discovered new exit (range 6) 1134 | -10/Materials | Discovered new exit (range 15) 1399 | -10/Materials | Entered Mines 1453 | -10/Mines | Met a Derelict bent on vengeance 1492 | -10/Mines | Assisted by bots powering up and referring to "LRC-V3" 1780 | -10/Mines | Discovered new exit (range 3) 1809 | -10/Mines | Deemed a non-threat by the Exiles lab entrance 1943 | -10/Mines | Discovered new exit (range 8) 1949 | -10/Mines | Learned location of Zion (-7) 1992 | -10/Mines | Learned location of Storage (-9) 2239 | -10/Mines | Discovered new exit (range 6) 2251 | -10/Mines | Entered Subcaves 2251 | -10/Subcaves | Accompanied by 3 allies 2252 | -10/Subcaves | Approached by a straggling Scientist 2534 | -10/Subcaves | Shifting Twisted Machinery released Spk. Treads 2542 | -10/Subcaves | Shifting Twisted Machinery released Piercing Trap 3426 | -10/Subcaves | Shifting Twisted Machinery released Battle Rifle 3430 | -10/Subcaves | Shifting Twisted Machinery released Riot Gun 3668 | -10/Subcaves | Lost 3 parts (1p1n1w) 3752 | -10/Subcaves | Learned location of 1 exit from Materials 3838 | -10/Subcaves | Ambushed by Subdwellers from Twisted Machinery 3838 | -10/Subcaves | Discovered new exit (range 11) 3850 | -10/Subcaves | Core integrity fell below 50% 3880 | -10/Subcaves | Lost 3 parts (1n1u1w) 4181 | -10/Subcaves | Build established: Scavenger-Mutant 4181 | -10/Subcaves | A Subdweller sparked back to life 4181 | -10/Subcaves | A Subdweller sparked back to life 4181 | -10/Subcaves | A Subdweller sparked back to life 4190 | -10/Subcaves | Core integrity fell below 20% 4202 | -10/Subcaves | Destroyed by 7T-M4M(R) with Subdweller Machine Gun Last Messages --------------- Flight Unit fries itself beyond repair. Lgt. Assault Rifle fries itself beyond repair. FI-0B4(c): "I think it's somewhere south of here" System corrupted: IFF burst signal emitted. UY-JHY(R) creaks and sparks as it begins to move. D5-1XS(R) creaks and sparks as it begins to move. 7T-M4M(R) creaks and sparks as it begins to move. Critical hit (Destroy). Lgt. Nuclear Core destroyed. Lgt. Treads destroyed. FI-0B4(c): "I think it's somewhere southeast of here" Flamer destroyed. D5-1XS(R) suffers critical hit (Burn). Sub. Monowheel destroyed. Particle Gun destroyed. Map ----- +----------------------------------------------------+ | ?????????# ## ### ##??????????????? | | ?????????# #% ##???????????????? | | ?????????# % ### ####?????????????? | | ?????????# %% ##?## ##????????????? | | ?????????### #???## ### #????????????? | | ???????????# #????## ##?## #????????????? | | ???????????# ##????# #??# #????????????? | | ???????????# ###????## ##### ####????????????? | | ???????????## #??????# # # #???????????????? | | ????????????## ??????## #???????????????? | | ?????????????## ??????# #???????????????? | | ???????????????#??????## # # ##???????????????? | | ???????????????????????# ### #????????????????? | | ???????????????????????# ##?#####????????????????? | | ??????????????????????## #???????????????????????? | | ??????????????????????# #???????????????????????? | | ??????????????????????# #####???????????????????? | | ??????????????????????# # ##??????????????????? | | ?????????????####?????# ##?????????????????? | | ????????????## <#### #?????????????????? | | ????????????# < ## #????????????????? | | ????????????## < << ##?# #????????????????? | | ?????????????## < R c ##???# ##????????????????? | | ??????????????## < ###???##?????????????????? | | ???????????????# R ; ####???????????????????? | | ???????????????# @ #???????????????????? | | ??????????????# ;#?????????????????? | | ??????????????# " ##?????????????????? | | ??????????????# " " ?????????????????? | | ??????????????#" " " ???????????????? | | ###?????????? """ # " " #?????????????? | | #????????? """""###" # #?????????????? | | #???????##""""???### # ## #?????????????? | | #???????##"""?????## ??#?????????????? | | ## ##????????###???????# ???????????????? | | ???????????????????????## ## ??????????????? | | ????????????????????????#######? ?????????????? | | ????????????????????????????????? ????????????? | | ????????????????????????????????? ???????????? | | ?????????????????????????????????? ##??????????? | | #????????????????????????????????? ????????????? | | #?????????????????????????????????? ##???????????? | | #????????????????????????????????????????????????? | | #????????????????????????????????????????????????? | | #????????????????????????????????????????????????? | | ?????????????????????????????????????????????????? | | ?????????????????????????????????????????????????? | | ?????????????????????????????????????????????????? | | ?????????????????????????????????????????????????? | | ?????????????????????????????????????????????????? | +----------------------------------------------------+ Best States ------------- Heat Dissipation 25 Energy Generation 14 Energy Capacity 250 Matter Stores 300 Matter Capacity 300 Sight Range 21 Terrain Scan Density 10 Resistance: KI 20 Resistance: TH 20 Resistance: EX 20 Resistance: EM 20 Resistance: I 20 Resistance: S 20 Resistance: P 20 Propulsion Shielding 33 Evasion (%) 50 Recoil Reduction 2 Offensive Hacking 10 Item Schematics ----------------- None Robot Schematics ------------------ None Fabricated ------------ Nothing Repaired ---------- Nothing Alien Tech Used ----------------- None Achievements -------------- None Challenges ------------ None Game ------ Seed ArcsightSchematicNetwork Manual? 0 Play Time 00:19:32 Cumulative 92.4 hours Start 2025.08.01 @ 08:48:38 End 2025.08.01 @ 09:05:30 Sessions 1 Manual Loads 0 Difficulty Adventurer Special Mode None Game No. 131 Rogue 13 Adventurer 118 Explorer 0 Win Type - Total 0 Types 0/0/0/0/0/0/0/0/0/0 Lore% 68 Gallery% 60 Achievement% 46 Wizard Run 0 Options --------- Layout 1 ASCII 0 Keyboard 0 Movement Mouse Keybinds 0 Fullscreen 1 Font 32/SmallcapsGlow Map View 50x35 Zoom Use 0% Tactical HUD 0 Map Filters NONE Filters NONE Steam 1 RUN: 45c74dd2-e83d-4ccd-8f95-07f84dd34a61